fUST/lending_fUST_20240306
["ID","MTS","AMOUNT","RATE_DAILY","PERIOD"]
[317116901,1709685051122,-500.0,0.00023287,2]
[317116902,1709685051132,-500.0,0.00023287,2]
[317116903,1709685051141,-159.27521809,0.00023287,2]
[317116904,1709685051151,-500.0,0.00023287,2]
[317116905,1709685051161,-500.0,0.00023287,2]
[317116906,1709685051171,-503.49443124,0.00023287,2]
[317116907,1709685051181,-500.0,0.00023287,2]
[317116908,1709685051194,-500.0,0.00023287,2]
[317116909,1709685051203,-500.0,0.00023287,2]
[317116910,1709685051213,-167.13698508,0.00023287,2]
[317116911,1709685051222,-500.0,0.00023287,2]
[317116912,1709685051231,-500.0,0.00023287,2]
[317116913,1709685051240,-500.0,0.00023287,2]
[317116914,1709685051249,-500.0,0.00023287,2]
[317116915,1709685051324,-500.0,0.00023287,2]
[317116916,1709685051335,-500.0,0.00023287,2]
[317116917,1709685051345,-503.7174914,0.00023287,2]
[317116918,1709685051354,-500.0,0.00023287,2]
[317116919,1709685051363,-500.0,0.00023287,2]
[317116920,1709685051372,-500.0,0.00023287,2]
[317116921,1709685051382,-500.0,0.00023287,2]
[317116922,1709685051391,-500.0,0.00023287,2]
[317116923,1709685051400,-500.0,0.00023287,2]
[317116924,1709685051409,-500.0,0.00023287,2]
[317116925,1709685051418,-500.0,0.00023287,2]
[317116926,1709685051428,-500.0,0.00023287,2]
[317116927,1709685051437,-500.0,0.00023287,2]
[317116928,1709685051448,-500.0,0.00023287,2]
[317116929,1709685051458,-459.71,0.00023287,2]
[317116930,1709685051467,-500.0,0.00023287,2]
[317116931,1709685051476,-500.0,0.00023287,2]
[317116932,1709685051485,-500.0,0.00023287,2]
[317116933,1709685051495,-500.0,0.00023287,2]
[317116934,1709685051504,-500.0,0.00023287,2]
[317116935,1709685051513,-500.0,0.00023287,2]
[317116936,1709685051522,-500.0,0.00023287,2]
[317116937,1709685051532,-500.0,0.00023287,2]
[317116938,1709685051542,-217.56398803,0.00023287,2]
[317116939,1709685051551,-500.0,0.00023287,2]
[317116940,1709685051561,-500.0,0.00023287,2]
[317116941,1709685051570,-500.0,0.00023287,2]
[317116942,1709685051579,-500.0,0.00023287,2]
[317116943,1709685051588,-500.0,0.00023287,2]
[317116944,1709685051600,-500.0,0.00023287,2]
[317116945,1709685051610,-500.0,0.00023287,2]
[317116946,1709685051619,-500.0,0.00023287,2]
[317116947,1709685051633,-500.0,0.00023287,2]
[317116948,1709685051642,-501.77687552,0.00023287,2]
[317116949,1709685051652,-502.10295356,0.00023287,2]
[317116950,1709685051661,-449.21223606,0.00023287,2]
[317116951,1709685051671,-500.0,0.00023287,2]
[317116952,1709685051681,-500.0,0.00023287,2]
[317116953,1709685051691,-500.0,0.00023287,2]
[317116954,1709685051701,-500.0,0.00023287,2]
[317116955,1709685051710,-500.0,0.00023287,2]
[317116956,1709685051720,-500.0,0.00023287,2]
[317116957,1709685051729,-500.0,0.00023287,2]
[317116958,1709685051738,-500.0,0.00023287,2]
[317116959,1709685051747,-500.0,0.00023287,2]
[317116960,1709685051757,-500.0,0.00023287,2]
[317116961,1709685051766,-500.0,0.00023287,2]
[317116962,1709685051775,-1000.0,0.00023338,2]
[317116963,1709685051784,-1000.0,0.00023389,2]
[317116964,1709685051794,-1000.0,0.00023441,2]
[317116965,1709685051803,-12499.99,0.00023449,2]
[317116966,1709685051812,-12500.15,0.00023462,2]
[317116967,1709685051822,-12500.03,0.00023464,2]
[317116968,1709685051831,-12499.93,0.00023469,2]
[317116969,1709685051840,-12499.99,0.00023477,2]
[317116970,1709685051849,-12499.99,0.00023477,2]
[317116971,1709685051859,-290.97,0.00023478,2]
[317116972,1709685051868,-7727.04,0.00023478,2]
[317116973,1709685051877,-12499.98,0.00023479,2]
[317116974,1709685051886,-9346.48,0.00023481,2]
[317116975,1709685051896,-4208.61,0.00023482,2]
[317116976,1709685051905,-7747.18,0.00023491,2]
[317116977,1709685051914,-12499.99,0.00023492,2]
[317116978,1709685051924,-12499.99,0.00023492,2]
[317116979,1709685051933,-1000.0,0.00023493,2]
[317116980,1709685051944,-12499.99,0.00023494,2]
[317116981,1709685051952,-1000.0,0.00023544,2]
[317116982,1709685051961,-686.3,0.00023572,3]
[317116983,1709685051970,-1000.0,0.00023596,2]
[317116984,1709685051979,-1000.0,0.00023648,2]
[317116985,1709685051989,-1000.0,0.00023699,2]
[317116986,1709685051999,-1000.0,0.00023751,2]
[317116987,1709685052009,-170.62751019,0.00023759,2]
[317116988,1709685052018,-7974.76237535,0.000238,7]
[317116989,1709685052028,-581.0,0.000238,2]
[317116990,1709685052037,-1000.0,0.00023803,2]
[317116991,1709685052047,-1000.0,0.00023854,2]
[317116992,1709685052057,-153.44850204,0.0002388,2]
[317116993,1709685052067,-8239.79880319,0.0002389,2]
[317116994,1709685052077,-692.86575098,0.000239,2]
[317116995,1709685052087,-1000.0,0.00023906,2]
[317116996,1709685052097,-1000.0,0.00023958,2]
[317116997,1709685052106,-247.6087915,0.00023998,2]
[317116998,1709685052116,-264.13125833,0.00023998,2]
[317116999,1709685052126,-402.12562078,0.00023998,2]
[317117000,1709685052136,-286.26090412,0.00023998,2]
[317117001,1709685052145,-651.0577104,0.00023998,2]
[317117002,1709685052155,-316.58871466,0.00023998,2]
[317117003,1709685052165,-766.91920912,0.00023999,2]
[317117004,1709685052174,-1385072.17956725,0.00024,6]
[317117005,1709685052349,-218.29795826,0.00023287,2]
[317117006,1709685052359,-500.0,0.00023287,2]
[317117007,1709685052370,-109.06262164,0.00023287,2]
[317117008,1709685052382,-473.72909415,0.00023287,2]
[317117009,1709685052391,-4951.78320585,0.00024,6]
[317117010,1709685052404,-2826.00367036,0.00024,6]
[317117011,1709685052538,-154.90705577,0.0002047,2]
[317117012,1709685052549,-398.99,0.00023277,3]
[317117013,1709685052558,-294.63994565,0.00023286,2]
[317117014,1709685052568,-68285.80304736,0.00024,6]
[317117015,1709685052583,-103049.62106841,0.00024,6]
[317117016,1709685052594,-50000.0,0.00024,6]
[317117017,1709685052608,-3035.72653626,0.00024,6]
[317117018,1709685052619,-615827.4704276,0.00024,6]
[317117032,1709685772421,3000.0,0.00018912,2]
[317117033,1709685950239,250.0,0.00019028,2]
[317117034,1709686026129,15945.20177926,0.00019028,2]
[317117035,1709686026160,8954.79822074,0.00019028,2]
[317117036,1709686026364,153.44850204,0.00018933,2]
[317117037,1709686038102,-154.87609912,0.00019137,2]
[317117038,1709686038124,-2113.35902263,0.00019137,2]
[317117039,1709686038145,-294.63994565,0.00019138,2]
[317117040,1709686038165,-315.51774917,0.00019138,2]
[317117041,1709686038186,-154.87609912,0.00019139,2]
[317117042,1709686038206,-154.87609912,0.00019139,2]
[317117043,1709686038226,-2683.1414593,0.00019146,2]
[317117044,1709686038246,-1504.839667,0.00019223,2]
[317117045,1709686038266,-166.666666,0.00019223,2]
[317117046,1709686038289,-162.218824,0.00019244,2]
[317117047,1709686038309,-613.5835545,0.00019251,2]
[317117048,1709686038329,-475.778349,0.00019251,2]
[317117049,1709686038357,-166.666666,0.00019747,2]
[317117050,1709686038379,-166.46955672,0.0002027,2]
[317117051,1709686038400,-166.666666,0.00020271,2]
[317117052,1709686038421,-13843.49791894,0.00020368,2]
[317117053,1709686038443,-406.13448681,0.0002037,2]
[317117054,1709686038465,-223.55261219,0.0002047,2]
[317117055,1709686038487,-166.666666,0.00020795,2]
[317117056,1709686038508,-1014.73155987,0.00021004,2]
[317117057,1709686038532,-166.666666,0.0002132,2]
[317117058,1709686038551,-166.666666,0.00021844,2]
[317117059,1709686038572,-1453.53733112,0.000219,2]
[317117060,1709686038592,-155.0,0.00022,2]
[317117061,1709686038612,-155.0,0.00023,2]
[317117062,1709686038632,-200.0,0.00023,2]
[317117063,1709686038651,-156.0,0.00023014,2]
[317117064,1709686038673,-153.0,0.00023041,2]
[317117065,1709686038693,-153.0,0.00023041,2]
[317117066,1709686038712,-153.0,0.00023041,2]
[317117067,1709686038731,-153.0,0.00023041,2]
[317117068,1709686038751,-153.0,0.00023041,2]
[317117069,1709686038771,-393.6409387,0.00023054,2]
[317117070,1709686038794,-507.07975588,0.00023055,3]
[317117071,1709686038816,-174.37086253,0.00023136,2]
[317117072,1709686038836,-306.0,0.00023178,2]
[317117073,1709686038856,-200.6945209,0.00023178,2]
[317117074,1709686038882,-153.0,0.00023178,2]
[317117075,1709686038908,-796.04,0.00023277,3]
[317117076,1709686038928,-398.02,0.00023277,3]
[317117077,1709686038951,-199.01,0.00023277,3]
[317117078,1709686038971,-597.08,0.00023277,3]
[317117079,1709686038997,-500.0,0.00023286,2]
[317117080,1709686039018,-500.0,0.00023286,2]
[317117081,1709686039041,-163.07915557,0.00023286,2]
[317117082,1709686039061,-500.0,0.00023287,2]
[317117083,1709686039081,-500.0,0.00023287,2]
[317117084,1709686039193,-414.96810622,0.00023287,2]
[317117085,1709686039213,-501.33361739,0.00023287,2]
[317117086,1709686039235,-500.0,0.00023287,2]
[317117087,1709686039258,-500.0,0.00023287,2]
[317117088,1709686039284,-500.0,0.00023287,2]
[317117089,1709686039306,-500.0,0.00023287,2]
[317117090,1709686039327,-500.0,0.00023287,2]
[317117091,1709686039348,-500.0,0.00023287,2]
[317117092,1709686039369,-500.0,0.00023287,2]
[317117093,1709686039390,-500.0,0.00023287,2]
[317117094,1709686039410,-500.0,0.00023287,2]
[317117095,1709686039430,-500.0,0.00023287,2]
[317117096,1709686039449,-500.0,0.00023287,2]
[317117097,1709686039470,-500.0,0.00023287,2]
[317117098,1709686039490,-500.0,0.00023287,2]
[317117099,1709686039509,-578.14718801,0.00023287,2]
[317117100,1709686039534,-500.0,0.00023287,2]
[317117101,1709686039554,-500.0,0.00023287,2]
[317117102,1709686039574,-532.24046876,0.00023287,2]
[317117103,1709686039595,-500.0,0.00023287,2]
[317117104,1709686039615,-500.0,0.00023287,2]
[317117105,1709686039635,-500.0,0.00023287,2]
[317117106,1709686039655,-500.0,0.00023287,2]
[317117107,1709686039676,-500.0,0.00023287,2]
[317117108,1709686039697,-500.87971647,0.00023287,2]
[317117109,1709686039716,-500.0,0.00023287,2]
[317117110,1709686039736,-500.0,0.00023287,2]
[317117111,1709686039765,-170.67,0.00023287,2]
[317117112,1709686039788,-314.33733289,0.00023287,2]
[317117113,1709686039809,-500.0,0.00023287,2]
[317117114,1709686039829,-500.0,0.00023287,2]
[317117115,1709686039849,-502.55102291,0.00023287,2]
[317117116,1709686039869,-503.20960449,0.00023287,2]
[317117117,1709686039889,-500.7038802,0.00023287,2]
[317117118,1709686039910,-500.0,0.00023287,2]
[317117119,1709686039934,-500.0,0.00023287,2]
[317117120,1709686039954,-500.0,0.00023287,2]
[317117121,1709686039976,-331.17941528,0.00023287,2]
[317117122,1709686039996,-306.78605,0.00023287,2]
[317117123,1709686040021,-500.0,0.00023287,2]
[317117124,1709686040044,-500.0,0.00023287,2]
[317117125,1709686040065,-500.0,0.00023287,2]
[317117126,1709686040086,-500.0,0.00023287,2]
[317117127,1709686040106,-506.21161018,0.00023287,2]
[317117128,1709686040126,-500.0,0.00023287,2]
[317117129,1709686040147,-500.0,0.00023287,2]
[317117130,1709686040168,-500.0,0.00023287,2]
[317117131,1709686040189,-500.0,0.00023287,2]
[317117132,1709686040209,-500.0,0.00023287,2]
[317117133,1709686040230,-500.0,0.00023287,2]
[317117134,1709686040250,-500.0,0.00023287,2]
[317117135,1709686040270,-500.0,0.00023287,2]
[317117136,1709686040292,-500.0,0.00023287,2]
[317117137,1709686040312,-500.0,0.00023287,2]
[317117138,1709686040331,-500.0,0.00023287,2]
[317117139,1709686040352,-500.0,0.00023287,2]
[317117140,1709686040372,-500.0,0.00023287,2]
[317117141,1709686040393,-536.5421615,0.00023287,2]
[317117142,1709686040414,-500.0,0.00023287,2]
[317117143,1709686040434,-159.27521809,0.00023287,2]
[317117144,1709686040454,-590.59055546,0.00023287,2]
[317117145,1709686040475,-500.0,0.00023287,2]
[317117146,1709686040495,-500.0,0.00023287,2]
[317117147,1709686040516,-500.0,0.00023287,2]
[317117148,1709686040539,-435.71509952,0.00023287,2]
[317117149,1709686040560,-367.3299672,0.00023287,2]
[317117150,1709686040581,-500.0,0.00023287,2]
[317117151,1709686040602,-53.65242159,0.00023287,2]
[317117156,1709686051196,-446.34757841,0.00023287,2]
[317117157,1709686051226,-500.0,0.00023287,2]
[317117158,1709686051246,-500.0,0.00023287,2]
[317117159,1709686051267,-500.0,0.00023287,2]
[317117160,1709686051289,-500.0,0.00023287,2]
[317117161,1709686051310,-500.0,0.00023287,2]
[317117162,1709686051330,-500.0,0.00023287,2]
[317117163,1709686051350,-500.0,0.00023287,2]
[317117164,1709686051370,-500.0,0.00023287,2]
[317117165,1709686051390,-500.0,0.00023287,2]
[317117166,1709686051410,-249.18635807,0.00023287,2]
[317117167,1709686051430,-500.0,0.00023287,2]
[317117168,1709686051450,-500.0,0.00023287,2]
[317117169,1709686051470,-500.0,0.00023287,2]
[317117170,1709686051489,-397.27057809,0.00023287,2]
[317117171,1709686051509,-500.0,0.00023287,2]
[317117172,1709686051529,-500.0,0.00023287,2]
[317117173,1709686051553,-500.0,0.00023287,2]
[317117174,1709686051574,-500.0,0.00023287,2]
[317117175,1709686051594,-500.0,0.00023287,2]
[317117176,1709686051615,-500.0,0.00023287,2]
[317117177,1709686051635,-500.0,0.00023287,2]
[317117178,1709686051654,-500.0,0.00023287,2]
[317117179,1709686051758,-500.0,0.00023287,2]
[317117180,1709686051778,-500.0,0.00023287,2]
[317117181,1709686051800,-500.0,0.00023287,2]
[317117182,1709686051820,-500.0,0.00023287,2]
[317117183,1709686051841,-500.0,0.00023287,2]
[317117184,1709686051860,-500.0,0.00023287,2]
[317117185,1709686051880,-500.0,0.00023287,2]
[317117186,1709686051902,-500.0,0.00023287,2]
[317117187,1709686051923,-500.0,0.00023287,2]
[317117188,1709686051943,-459.71,0.00023287,2]
[317117189,1709686051964,-500.0,0.00023287,2]
[317117190,1709686051984,-500.0,0.00023287,2]
[317117191,1709686052005,-500.0,0.00023287,2]
[317117192,1709686052025,-502.10295356,0.00023287,2]
[317117193,1709686052046,-167.13698508,0.00023287,2]
[317117194,1709686052066,-500.0,0.00023287,2]
[317117195,1709686052086,-503.49443124,0.00023287,2]
[317117196,1709686052105,-503.7174914,0.00023287,2]
[317117197,1709686052126,-500.0,0.00023287,2]
[317117198,1709686052146,-500.0,0.00023287,2]
[317117199,1709686052165,-500.0,0.00023287,2]
[317117200,1709686052185,-500.0,0.00023287,2]
[317117201,1709686052205,-633.10409714,0.00023287,2]
[317117202,1709686052226,-500.0,0.00023287,2]
[317117203,1709686052245,-500.0,0.00023287,2]
[317117204,1709686052265,-500.0,0.00023287,2]
[317117205,1709686052285,-500.0,0.00023287,2]
[317117206,1709686052304,-500.0,0.00023287,2]
[317117207,1709686052324,-500.0,0.00023287,2]
[317117208,1709686052345,-2709.38,0.00023287,2]
[317117209,1709686052366,-2709.38,0.00023287,2]
[317117210,1709686052386,-500.0,0.00023287,2]
[317117211,1709686052406,-2709.38,0.00023287,2]
[317117212,1709686052426,-500.0,0.00023287,2]
[317117213,1709686052445,-500.0,0.00023287,2]
[317117214,1709686052465,-500.0,0.00023287,2]
[317117215,1709686052485,-500.0,0.00023287,2]
[317117216,1709686052506,-500.0,0.00023287,2]
[317117217,1709686052526,-500.0,0.00023287,2]
[317117218,1709686052549,-500.0,0.00023287,2]
[317117219,1709686052570,-500.0,0.00023287,2]
[317117220,1709686052591,-500.0,0.00023287,2]
[317117221,1709686052611,-500.0,0.00023287,2]
[317117222,1709686052631,-500.0,0.00023287,2]
[317117223,1709686052651,-500.0,0.00023287,2]
[317117224,1709686052672,-500.0,0.00023287,2]
[317117225,1709686052692,-500.0,0.00023287,2]
[317117226,1709686052712,-500.0,0.00023287,2]
[317117227,1709686052732,-500.0,0.00023287,2]
[317117228,1709686052752,-500.0,0.00023287,2]
[317117229,1709686052772,-500.0,0.00023287,2]
[317117230,1709686052794,-500.0,0.00023287,2]
[317117231,1709686052815,-500.0,0.00023287,2]
[317117232,1709686052836,-500.0,0.00023287,2]
[317117233,1709686052855,-500.0,0.00023287,2]
[317117234,1709686052874,-500.0,0.00023287,2]
[317117235,1709686052895,-501.77687552,0.00023287,2]
[317117236,1709686052919,-500.0,0.00023287,2]
[317117237,1709686052938,-500.0,0.00023287,2]
[317117238,1709686052958,-500.0,0.00023287,2]
[317117239,1709686052977,-500.0,0.00023287,2]
[317117240,1709686052995,-620.74541669,0.00023287,2]
[317117241,1709686053016,-449.21223606,0.00023287,2]
[317117242,1709686053037,-500.39180037,0.00023287,2]
[317117243,1709686053057,-500.0,0.00023287,2]
[317117244,1709686053077,-500.0,0.00023287,2]
[317117245,1709686053095,-500.0,0.00023287,2]
[317117246,1709686053115,-500.0,0.00023287,2]
[317117247,1709686053134,-500.0,0.00023287,2]
[317117248,1709686053153,-500.0,0.00023287,2]
[317117249,1709686053172,-502.15205605,0.00023287,2]
[317117250,1709686053191,-500.0,0.00023287,2]
[317117251,1709686053211,-500.0,0.00023287,2]
[317117252,1709686053232,-1920.9,0.00023287,2]
[317117253,1709686053251,-1920.9,0.00023287,2]
[317117254,1709686053272,-1920.9,0.00023287,2]
[317117255,1709686053297,-1920.9,0.00023287,2]
[317117256,1709686053319,-500.0,0.00023287,2]
[317117257,1709686053340,-500.0,0.00023287,2]
[317117258,1709686053360,-500.0,0.00023287,2]
[317117259,1709686053382,-500.0,0.00023287,2]
[317117260,1709686053402,-500.0,0.00023287,2]
[317117261,1709686053421,-500.0,0.00023287,2]
[317117262,1709686053443,-500.0,0.00023287,2]
[317117263,1709686053464,-628.98,0.00023287,2]
[317117264,1709686053484,-500.0,0.00023287,2]
[317117265,1709686053504,-500.0,0.00023287,2]
[317117266,1709686053524,-166.69275076,0.00023287,2]
[317117267,1709686053552,-3492.65753186,0.00023614,2]
[317117268,1709686053573,-500.0,0.00023686,2]
[317117269,1709686053596,-2709.38,0.00023686,2]
[317117270,1709686053617,-12500.0,0.00023686,2]
[317117271,1709686053637,-500.0,0.00023693,2]
[317117272,1709686053659,-501.1447911,0.00023693,2]
[317117273,1709686053681,-1920.9,0.00023693,2]
[317117274,1709686053701,-500.0,0.00023693,2]
[317117275,1709686053721,-12500.0,0.00023694,2]
[317117276,1709686053741,-12500.18,0.00023694,2]
[317117277,1709686053761,-500.0,0.00023703,2]
[317117278,1709686053781,-2709.38,0.00023703,2]
[317117279,1709686053806,-12500.0,0.00023703,2]
[317117280,1709686053827,-1920.9,0.00023705,2]
[317117281,1709686053846,-12499.98,0.00023705,2]
[317117282,1709686053867,-12500.0,0.00023706,2]
[317117283,1709686053887,-500.0,0.00023713,2]
[317117284,1709686053909,-2709.38,0.00023713,2]
[317117285,1709686053931,-12499.92,0.00023713,2]
[317117286,1709686053951,-12500.0,0.00023714,2]
[317117287,1709686053974,-1920.9,0.00023715,2]
[317117288,1709686053995,-7747.17,0.00023715,2]
[317117289,1709686054016,-202.74959991,0.00023721,2]
[317117290,1709686054119,-500.0,0.00023721,2]
[317117291,1709686054141,-352.80370632,0.00023721,2]
[317117292,1709686054163,-500.0,0.00023721,2]
[317117293,1709686054186,-500.0,0.00023721,2]
[317117294,1709686054208,-500.0,0.00023721,2]
[317117295,1709686054229,-12500.0,0.00023722,2]
[317117296,1709686054250,-500.0,0.00023724,2]
[317117297,1709686054272,-2709.38,0.00023724,2]
[317117298,1709686054296,-1920.9,0.00023724,2]
[317117299,1709686054316,-9073.07,0.00023724,2]
[317117300,1709686054340,-12624.78,0.00023725,2]
[317117301,1709686054360,-12500.0,0.00023725,2]
[317117302,1709686054380,-170.62751019,0.00023759,2]
[317117303,1709686054400,-7974.76237535,0.000238,7]
[317117304,1709686054420,-500.0,0.00023889,2]
[317117305,1709686054441,-2709.38,0.00023889,2]
[317117306,1709686054461,-581.0,0.000239,2]
[317117307,1709686054481,-8239.79880319,0.00023997,2]
[317117308,1709686054502,-247.6087915,0.00023998,2]
[317117309,1709686054523,-651.0577104,0.00023998,2]
[317117310,1709686054545,-402.12562078,0.00023998,2]
[317117311,1709686054565,-155.0480649,0.00023998,2]
[317117312,1709686054587,-1920.9,0.00023998,2]
[317117313,1709686054607,-261.59070415,0.00023998,2]
[317117314,1709686054626,-262.30499118,0.00023999,7]
[317117315,1709686054646,-500.0,0.00023999,2]
[317117316,1709686054667,-500.0,0.00023999,2]
[317117317,1709686054688,-500.0,0.00023999,2]
[317117318,1709686054708,-500.0,0.00023999,2]
[317117319,1709686054729,-235.07,0.00023999,2]
[317117320,1709686054750,-2709.38,0.00023999,2]
[317117321,1709686054771,-2709.38,0.00023999,2]
[317117322,1709686054794,-2709.38,0.00023999,2]
[317117323,1709686054815,-2709.38,0.00023999,2]
[317117324,1709686054835,-2709.38,0.00023999,2]
[317117325,1709686054857,-2709.38,0.00023999,2]
[317117326,1709686054878,-2709.38,0.00023999,2]
[317117327,1709686054899,-2709.38,0.00023999,2]
[317117328,1709686054922,-2709.38,0.00023999,2]
[317117329,1709686054943,-2709.38,0.00023999,2]
[317117330,1709686054964,-2709.38,0.00023999,2]
[317117331,1709686054985,-2709.38,0.00023999,2]
[317117332,1709686055006,-2709.38,0.00023999,2]
[317117333,1709686055028,-2709.38,0.00023999,2]
[317117334,1709686055051,-2709.38,0.00023999,2]
[317117335,1709686055072,-2709.43068381,0.00023999,2]
[317117336,1709686055096,-500.0,0.00023999,2]
[317117337,1709686055118,-500.0,0.00023999,2]
[317117338,1709686055140,-217.56398803,0.00023999,2]
[317117339,1709686055163,-1920.9,0.00023999,2]
[317117340,1709686055185,-1920.9,0.00023999,2]
[317117341,1709686055207,-1920.9,0.00023999,2]
[317117342,1709686055228,-1920.9,0.00023999,2]
[317117343,1709686055250,-1920.9,0.00023999,2]
[317117344,1709686055271,-1920.9,0.00023999,2]
[317117345,1709686055293,-1920.9,0.00023999,2]
[317117346,1709686055316,-1920.9,0.00023999,2]
[317117347,1709686055338,-1920.9,0.00023999,2]
[317117348,1709686055360,-1920.9,0.00023999,2]
[317117349,1709686055383,-1920.9,0.00023999,2]
[317117350,1709686055405,-1920.9,0.00023999,2]
[317117351,1709686055428,-1920.9,0.00023999,2]
[317117352,1709686055449,-1920.9,0.00023999,2]
[317117353,1709686055478,-1921.07819975,0.00023999,2]
[317117354,1709686055503,-276.56846391,0.00024,3]
[317117355,1709686055526,-71196.16849523,0.00024,6]
[317117356,1709686055585,-155.26041568,0.00023998,2]
[317117357,1709686055606,-316.58871466,0.00023998,2]
[317117358,1709686055628,-94414.240295,0.00024,6]
[317117401,1709686232826,-969.02488741,0.000219,2]
[317117403,1709686232836,-294.63994565,0.00022443,2]
[317117404,1709686232846,-9717.1882869,0.00022444,2]
[317117406,1709686232856,-169.077529,0.00022573,2]
[317117408,1709686232865,-1006.37,0.00023054,2]
[317117410,1709686232875,-287.02610454,0.00023056,2]
[317117412,1709686232884,-5000.0,0.00023136,7]
[317117414,1709686232894,-5000.0,0.00023136,7]
[317117416,1709686232903,-5000.0,0.00023136,7]
[317117418,1709686232914,-5000.0,0.00023136,7]
[317117421,1709686232924,-5000.0,0.00023136,7]
[317117423,1709686232933,-5000.0,0.00023136,7]
[317117424,1709686232942,-5000.0,0.00023136,7]
[317117427,1709686232953,-5000.0,0.00023136,7]
[317117429,1709686232962,-500.0,0.00023287,2]
[317117430,1709686232971,-582.60459515,0.00023287,2]
[317117432,1709686232983,-498.66666115,0.00023287,2]
[317117434,1709686232992,-1874.7,0.00023287,2]
[317117436,1709686233002,-1874.7,0.00023287,2]
[317117438,1709686233011,-1874.7,0.00023287,2]
[317117439,1709686233020,-1874.7,0.00023287,2]
[317117442,1709686233029,-500.0,0.00023287,2]
[317117444,1709686233039,-500.0,0.00023287,2]
[317117446,1709686233049,-500.0,0.00023287,2]
[317117448,1709686233058,-500.0,0.00023287,2]
[317117450,1709686233070,-500.0,0.00023287,2]
[317117452,1709686233080,-500.0,0.00023287,2]
[317117463,1709686233158,-500.0,0.00023287,2]
[317117465,1709686233192,-500.0,0.00023287,2]
[317117467,1709686233202,-500.0,0.00023287,2]
[317117469,1709686233211,-500.0,0.00023287,2]
[317117471,1709686233220,-589.44894774,0.00023287,2]
[317117473,1709686233229,-500.0,0.00023287,2]
[317117475,1709686233239,-500.0,0.00023287,2]
[317117477,1709686233249,-500.0,0.00023287,2]
[317117479,1709686233262,-500.0,0.00023287,2]
[317117481,1709686233272,-500.0,0.00023287,2]
[317117483,1709686233281,-500.0,0.00023287,2]
[317117485,1709686233291,-500.0,0.00023287,2]
[317117488,1709686233301,-500.0,0.00023287,2]
[317117490,1709686233311,-500.0,0.00023287,2]
[317117492,1709686233320,-500.0,0.00023287,2]
[317117494,1709686233329,-500.0,0.00023287,2]
[317117496,1709686233338,-500.0,0.00023287,2]
[317117497,1709686233348,-500.0,0.00023287,2]
[317117500,1709686233357,-500.0,0.00023287,2]
[317117502,1709686233366,-500.0,0.00023287,2]
[317117503,1709686233375,-500.0,0.00023287,2]
[317117505,1709686233384,-464.35,0.00023583,3]
[317117508,1709686233394,-232.18,0.00023583,3]
[317117510,1709686233403,-696.55,0.00023583,3]
[317117511,1709686233414,-178636.59831396,0.00023593,2]
[317117514,1709686233426,-19232.0,0.00023593,2]
[317117516,1709686233438,-57334.75913032,0.00023593,2]
[317117518,1709686233448,-200.8478084,0.000236,2]
[317117520,1709686233457,-153.0,0.000236,2]
[317117522,1709686233466,-153.0,0.000236,2]
[317117524,1709686233476,-153.0,0.000236,2]
[317117526,1709686233485,-1874.7,0.00023693,2]